fUSD/lending_fUSD_20240514
["ID","MTS","AMOUNT","RATE_DAILY","PERIOD"]
[327036673,1715728242987,-1016.7,0.00012947,2]
[327036674,1715728242996,-3464.13,0.00012947,2]
[327036675,1715728243006,-1500.93,0.00012947,2]
[327036676,1715728243016,-3464.13,0.00012947,2]
[327036677,1715728243025,-1500.93,0.00012947,2]
[327036678,1715728243035,-666.2,0.00012947,2]
[327036679,1715728243044,-666.2,0.00012947,2]
[327036680,1715728243054,-9234.67,0.00012947,2]
[327036681,1715728243069,-9234.67,0.00012947,2]
[327036682,1715728243078,-500.0,0.00012947,2]
[327036683,1715728243087,-1433.13780313,0.00012947,2]
[327036684,1715728243100,-308.68743525,0.00012947,2]
[327036685,1715728243111,-811.89476162,0.00012947,2]
[327036686,1715728243120,-21.90972075,0.00012947,2]
[327036687,1715728243131,-1627.23699014,0.00012947,2]
[327036688,1715728243142,-376.2556118,0.00012947,2]
[327036689,1715728243154,-528.31767731,0.00012947,2]
[327036690,1715728243164,-396.99922093,0.00012947,2]
[327036691,1715728243175,-103.00077907,0.00012947,2]
[327036692,1715728243185,-500.0,0.00012947,2]
[327036693,1715728243195,-778.9511265,0.00012947,2]
[327036694,1715728243207,-2877.1188735,0.00012947,2]
[327036695,1715728243216,-1558.9,0.00012947,2]
[327036696,1715728243226,-1558.9,0.00012947,2]
[327036697,1715728243235,-1063.78,0.00012947,2]
[327036698,1715728243245,-500.0,0.00012947,2]
[327036699,1715728243254,-500.0,0.00012947,2]
[327036700,1715728243263,-1063.78,0.00012947,2]
[327036701,1715728243273,-2555.93,0.00012947,2]
[327036702,1715728243282,-2555.93,0.00012947,2]
[327036703,1715728243291,-3285.93,0.00012947,2]
[327036704,1715728243301,-10731.86,0.00012947,2]
[327036705,1715728243313,-10731.86,0.00012947,2]
[327036706,1715728243322,-655.28,0.00012947,2]
[327036707,1715728243332,-500.0,0.00012947,2]
[327036708,1715728243341,-655.28,0.00012947,2]
[327036710,1715728243350,-500.0,0.00012947,2]
[327036712,1715728243359,-2566.13,0.00012947,2]
[327036714,1715728243369,-2926.71,0.00012947,2]
[327036716,1715728243379,-2926.71,0.00012947,2]
[327036718,1715728243388,-719.08,0.00012947,2]
[327036719,1715728243397,-719.08,0.00012947,2]
[327036720,1715728243407,-2527.38,0.00012947,2]
[327036721,1715728243416,-2527.38,0.00012947,2]
[327036722,1715728243425,-1168.38,0.00012947,2]
[327036723,1715728243435,-500.0,0.00012947,2]
[327036724,1715728243444,-512.39,0.00012947,2]
[327036725,1715728243454,-1658.96,0.00012947,2]
[327036726,1715728243463,-1658.96,0.00012947,2]
[327036727,1715728243472,-728.21,0.00012947,2]
[327036728,1715728243481,-500.0,0.00012947,2]
[327036729,1715728243491,-390.72,0.00012947,2]
[327036730,1715728243500,-2438.23,0.00012947,2]
[327036731,1715728243510,-839.15,0.00012947,2]
[327036732,1715728243520,-839.15,0.00012947,2]
[327036733,1715728243529,-95630.01952048,0.00012948,2]
[327036744,1715728244339,-1130.71592086,0.00012288,2]
[327036745,1715728244351,-393.95818503,0.00012288,2]
[327036746,1715728244362,-3006.29999994,0.00012288,2]
[327036747,1715728244375,-5469.02589417,0.00012288,2]
[327036748,1715728244384,-3199.2754271,0.00012946,2]
[327036749,1715728244483,-122.7945729,0.00012946,2]
[327036750,1715728244492,-1686.570267,0.00012947,2]
[327036751,1715728244506,-292.39394109,0.00012947,2]
[327036752,1715728244520,-534.67786524,0.00012947,2]
[327036753,1715728244532,-270.26820456,0.00012947,2]
[327036754,1715728244545,-538.15972211,0.00012947,2]
[327036755,1715728244555,-3322.07,0.00012947,2]
[327036756,1715728244566,-18015.48324646,0.00012948,2]
[327036757,1715728244595,-330.75110853,0.00012948,2]
[327036758,1715728244627,-264.4956,0.00012948,2]
[327036759,1715728244638,-50300.0,0.00012948,2]
[327036760,1715728244650,-179996.0067395,0.00012948,2]
[327036761,1715728244660,-150.0,0.0001296,2]
[327036762,1715728244676,-153.988,0.0001296,2]
[327036763,1715728244686,-973.0,0.0001296,2]
[327036764,1715728244830,-1398.0,0.0001296,2]
[327036765,1715728244881,-2299.0,0.0001296,2]
[327036766,1715728244891,-1261.0,0.0001296,2]
[327036767,1715728244901,-1342.788,0.0001296,2]
[327036768,1715728244912,-1790.0,0.0001296,2]
[327036769,1715728244922,-543.0,0.0001296,2]
[327036770,1715728244932,-438.0,0.0001296,2]
[327036771,1715728244941,-238.0,0.0001296,2]
[327036772,1715728244951,-809.0,0.0001296,2]
[327036773,1715728244960,-612.0,0.0001296,2]
[327036774,1715728244970,-422.0,0.0001296,2]
[327036775,1715728244979,-1646.0,0.0001296,2]
[327036776,1715728244990,-2433.0,0.0001296,2]
[327036777,1715728244999,-244.268,0.0001296,2]
[327036778,1715728245008,-204.637,0.0001296,2]
[327036779,1715728245020,-299.259,0.0001296,2]
[327036780,1715728245030,-444.0,0.0001296,2]
[327036781,1715728245040,-3156.0,0.0001296,2]
[327036782,1715728245049,-1138.0,0.0001296,2]
[327036783,1715728245060,-223.0,0.0001296,2]
[327036784,1715728245069,-5749.0,0.0001296,2]
[327036785,1715728245079,-1047.0,0.0001296,2]
[327036786,1715728245089,-288.0,0.0001296,2]
[327036787,1715728245100,-5911.0,0.0001296,2]
[327036788,1715728245109,-19254.60619274,0.0001296,2]
[327036789,1715728245121,-460.63094984,0.0001296,2]
[327036790,1715728245132,-281.70783134,0.0001296,2]
[327036791,1715728245144,-3175.82164568,0.0001296,2]
[327036792,1715728245155,-4199.37358153,0.0001296,2]
[327036793,1715728245166,-712.87,0.0001296,2]
[327036794,1715728245177,-395.08895522,0.0001296,2]
[327036795,1715728245188,-303.94329984,0.0001296,2]
[327036796,1715728245199,-1147.94373023,0.0001296,2]
[327036797,1715728245210,-896.82497611,0.0001296,2]
[327036798,1715728245222,-492.31580113,0.0001296,2]
[327036799,1715728245233,-489.59093316,0.0001296,2]
[327036800,1715728245245,-583.612171,0.0001296,2]
[327036801,1715728245256,-627.57,0.0001296,2]
[327036802,1715728245268,-1735.92,0.0001296,2]
[327036803,1715728245280,-3073.17993218,0.0001296,2]
[327036804,1715728245289,-500.0,0.00012989,2]
[327036805,1715728245298,-500.0,0.00012989,2]
[327036806,1715728245308,-500.0,0.00012989,2]
[327036807,1715728245319,-602.07,0.00012989,2]
[327036808,1715728245328,-1226.43,0.00012989,2]
[327036809,1715728245338,-500.0,0.00012989,2]
[327036810,1715728245347,-574.3527858,0.00012989,2]
[327036811,1715728245357,-500.79408314,0.00012989,2]
[327036812,1715728245369,-31.94591686,0.00012989,2]
[327036813,1715728245379,-656.52,0.00012989,2]
[327036814,1715728245388,-1311.31761274,0.00012989,2]
[327036815,1715728245407,-476.2010242,0.00012989,2]
[327036816,1715728245419,-322.87653265,0.00012989,2]
[327036817,1715728245430,-11218.23483041,0.00012989,2]
[327036818,1715728245440,-1029.34,0.00012989,2]
[327036819,1715728245450,-3511.5,0.00012989,2]
[327036820,1715728245462,-5474.96,0.00012989,2]
[327036821,1715728245473,-500.0,0.00012989,2]
[327036822,1715728245484,-6122.11,0.00012989,2]
[327036823,1715728245495,-1703.94,0.00012989,2]
[327036824,1715728245506,-500.0,0.00012989,2]
[327036825,1715728245516,-500.0,0.00012989,2]
[327036826,1715728245525,-978.63,0.00012989,2]
[327036827,1715728245535,-500.0,0.00012989,2]
[327036828,1715728245544,-941.51,0.00012989,2]
[327036829,1715728245554,-500.0,0.00012989,2]
[327036830,1715728245564,-26963.49,0.00012989,2]
[327036831,1715728245573,-500.0,0.00012989,2]
[327036832,1715728245583,-1457.66,0.00012989,2]
[327036833,1715728245592,-3146.55,0.00012989,2]
[327036834,1715728245601,-500.0,0.00012989,2]
[327036835,1715728245610,-500.0,0.00012989,2]
[327036836,1715728245620,-500.0,0.00012989,2]
[327036837,1715728245629,-500.0,0.00012989,2]
[327036838,1715728245638,-500.0,0.00012989,2]
[327036839,1715728245648,-1517.21,0.00012989,2]
[327036840,1715728245657,-500.0,0.00012989,2]
[327036841,1715728245667,-500.0,0.00012989,2]
[327036842,1715728245680,-745.43,0.00012989,2]
[327036843,1715728245689,-500.0,0.00012989,2]
[327036844,1715728245699,-1358.81,0.00012989,2]
[327036845,1715728245709,-586.58456027,0.00012989,2]
[327036846,1715728245719,-1123.54,0.00012989,2]
[327036847,1715728245728,-500.0,0.00012989,2]
[327036848,1715728245737,-500.0,0.00012989,2]
[327036849,1715728245747,-500.0,0.00012989,2]
[327036850,1715728245758,-2990.62,0.00012989,2]
[327036851,1715728245768,-1031.71,0.00012989,2]
[327036852,1715728245779,-1821.73,0.00012989,2]
[327036853,1715728245789,-500.0,0.00012989,2]
[327036854,1715728245799,-4644.39,0.00012989,2]
[327036855,1715728245809,-1017.04,0.00012989,2]
[327036856,1715728245819,-1446.35,0.00012989,2]
[327036857,1715728245828,-397.06,0.00012989,2]
[327036858,1715728245839,-1341.54,0.00012989,2]
[327036859,1715728245849,-2322.2,0.00012989,2]
[327036862,1715728245858,-1582.2,0.00012989,2]
[327036865,1715728245868,-1122.72,0.00012989,2]
[327036868,1715728245877,-500.0,0.00012989,2]
[327036871,1715728245886,-4260.11,0.00012989,2]
[327036873,1715728245895,-1500.93,0.00012989,2]
[327036876,1715728245905,-666.2,0.00012989,2]
[327036879,1715728245915,-9234.67,0.00012989,2]
[327036882,1715728245925,-500.0,0.00012989,2]
[327036884,1715728245934,-500.0,0.00012989,2]
[327036885,1715728245944,-3656.07,0.00012989,2]
[327036886,1715728245954,-1558.9,0.00012989,2]
[327036887,1715728245963,-500.0,0.00012989,2]
[327036888,1715728245973,-3285.93,0.00012989,2]
[327036889,1715728245983,-10731.86,0.00012989,2]
[327036890,1715728245993,-500.0,0.00012989,2]
[327036891,1715728246002,-2566.13,0.00012989,2]
[327036892,1715728246012,-2527.38,0.00012989,2]
[327036893,1715728246021,-1168.38,0.00012989,2]
[327036894,1715728246031,-728.21,0.00012989,2]
[327036895,1715728246040,-500.0,0.00012989,2]
[327036896,1715728246050,-2438.23,0.00012989,2]
[327036897,1715728246060,-307.6176664,0.0001299,2]
[327036898,1715728246070,-4065.11,0.0001299,2]
[327036899,1715728246080,-958.28,0.0001299,2]
[327036900,1715728246089,-500.0,0.0001299,2]
[327036901,1715728246098,-2712.75,0.0001299,2]
[327036902,1715728246108,-16204.26,0.0001299,2]
[327036903,1715728246117,-500.0,0.0001299,2]
[327036904,1715728246127,-1430.61,0.0001299,2]
[327036905,1715728246137,-500.0,0.0001299,2]
[327036906,1715728246147,-1810.37,0.0001299,2]
[327036907,1715728246156,-500.0,0.0001299,2]
[327036908,1715728246167,-1591.24,0.0001299,2]
[327036909,1715728246176,-500.0,0.0001299,2]
[327036910,1715728246186,-797.14,0.0001299,2]
[327036911,1715728246197,-1529.24,0.0001299,2]
[327036912,1715728246207,-500.0,0.0001299,2]
[327036913,1715728246216,-500.0,0.0001299,2]
[327036914,1715728246226,-2028.14,0.0001299,2]
[327036915,1715728246235,-909.52,0.0001299,2]
[327036916,1715728246245,-1228.63,0.0001299,2]
[327036917,1715728246254,-500.0,0.0001299,2]
[327036918,1715728246263,-761.35,0.0001299,2]
[327036919,1715728246273,-3179.12,0.0001299,2]
[327036920,1715728246282,-2707.21,0.0001299,2]
[327036921,1715728246292,-897.81,0.0001299,2]
[327036922,1715728246301,-1735.32,0.0001299,2]
[327036923,1715728246311,-727.64,0.0001299,2]
[327036924,1715728246321,-4846.34,0.0001299,2]
[327036925,1715728246330,-2221.34,0.0001299,2]
[327036926,1715728246340,-1016.7,0.0001299,2]
[327036927,1715728246350,-3464.13,0.0001299,2]
[327036928,1715728246358,-2553.72,0.0001299,2]
[327036929,1715728246368,-1063.78,0.0001299,2]
[327036930,1715728246379,-2555.93,0.0001299,2]
[327036931,1715728246390,-655.28,0.0001299,2]
[327036932,1715728246401,-2926.71,0.0001299,2]
[327036933,1715728246411,-719.08,0.0001299,2]
[327036934,1715728246420,-1658.96,0.0001299,2]
[327036935,1715728246430,-839.15,0.0001299,2]
[327036936,1715728246439,-3322.07,0.0001299,2]
[327036937,1715728246448,-1000.0,0.00012991,2]
[327036938,1715728246457,-500.0,0.00012991,2]
[327036939,1715728246467,-500.0,0.00012991,2]
[327036940,1715728246476,-1351.12,0.00012991,2]
[327036941,1715728246486,-1343.93,0.00012991,2]
[327036942,1715728246495,-1546.61,0.00012991,2]
[327036943,1715728246505,-554.53,0.00012991,2]
[327036944,1715728246514,-1002.77,0.00012991,2]
[327036945,1715728246523,-3156.28,0.00012991,2]
[327036946,1715728246533,-1989.56,0.00012991,2]
[327036948,1715728246542,-1665.14,0.00012991,2]
[327036949,1715728246552,-2000.0,0.00012992,2]
[327036950,1715728246561,-200.0,0.00012992,2]
[327036951,1715728246570,-691.42,0.00012992,2]
[327036952,1715728246579,-500.0,0.00012992,2]
[327036953,1715728246589,-611.25677385,0.00012992,2]
[327036954,1715728246599,-589.1,0.00012992,2]
[327036955,1715728246609,-790.38,0.00012992,2]
[327036956,1715728246618,-500.0,0.00012992,2]
[327036957,1715728246627,-2000.0,0.00012992,2]
[327036958,1715728246637,-200.0,0.00012992,2]
[327036959,1715728246647,-500.0,0.00012992,2]
[327036960,1715728246656,-500.0,0.00012992,2]
[327036961,1715728246667,-772.38224,0.00012992,2]
[327036962,1715728246680,-500.0,0.00012993,2]
[327036963,1715728246690,-500.0,0.00012993,2]
[327036964,1715728246699,-500.0,0.00012993,2]
[327036965,1715728246710,-602.07,0.00012993,2]
[327036966,1715728246719,-1226.43,0.00012993,2]
[327036967,1715728246730,-500.0,0.00012993,2]
[327036968,1715728246741,-532.74,0.00012993,2]
[327036969,1715728246752,-656.52,0.00012993,2]
[327036970,1715728246763,-500.0,0.00012993,2]
[327036971,1715728246774,-500.0,0.00012993,2]
[327036972,1715728246783,-1017.04,0.00012993,2]
[327036973,1715728246794,-728.21,0.00012993,2]
[327036974,1715728246804,-500.0,0.00012993,2]
[327036975,1715728246814,-157.051508,0.00012994,2]
[327036976,1715728246823,-157.051508,0.00012994,2]
[327036977,1715728246833,-4065.11,0.00012994,2]
[327036978,1715728246842,-6122.11,0.00012994,2]
[327036979,1715728246853,-156.96,0.00012994,2]
[327036980,1715728246863,-1703.94,0.00012994,2]
[327036981,1715728246873,-978.63,0.00012994,2]
[327036982,1715728246882,-2712.75,0.00012994,2]
[327036983,1715728246892,-16204.26,0.00012994,2]
[327036984,1715728246901,-1457.66,0.00012994,2]
[327036985,1715728246910,-500.0,0.00012994,2]
[327036986,1715728246920,-1430.61,0.00012994,2]
[327036987,1715728246929,-1810.37,0.00012994,2]
[327036988,1715728246939,-500.0,0.00012994,2]
[327036989,1715728246949,-1591.24,0.00012994,2]
[327036990,1715728246959,-500.0,0.00012994,2]
[327036991,1715728246969,-500.0,0.00012994,2]
[327036992,1715728246978,-1517.21,0.00012994,2]
[327036993,1715728246988,-500.0,0.00012994,2]
[327036994,1715728246997,-745.43,0.00012994,2]
[327036995,1715728247007,-1358.81,0.00012994,2]
[327036996,1715728247017,-1123.54,0.00012994,2]
[327036997,1715728247026,-500.0,0.00012994,2]
[327036998,1715728247035,-2990.62,0.00012994,2]
[327036999,1715728247045,-1031.71,0.00012994,2]
[327037000,1715728247055,-1821.73,0.00012994,2]
[327037001,1715728247065,-500.0,0.00012994,2]
[327037002,1715728247075,-4644.39,0.00012994,2]
[327037003,1715728247084,-1341.54,0.00012994,2]
[327037004,1715728247093,-2322.2,0.00012994,2]
[327037005,1715728247103,-500.0,0.00012994,2]
[327037006,1715728247112,-4260.11,0.00012994,2]
[327037007,1715728247121,-1500.93,0.00012994,2]
[327037008,1715728247130,-666.2,0.00012994,2]
[327037009,1715728247141,-9234.67,0.00012994,2]
[327037010,1715728247150,-500.0,0.00012994,2]
[327037011,1715728247160,-1558.9,0.00012994,2]
[327037012,1715728247169,-500.0,0.00012994,2]
[327037013,1715728247178,-10731.86,0.00012994,2]
[327037014,1715728247188,-500.0,0.00012994,2]
[327037015,1715728247197,-2527.38,0.00012994,2]
[327037016,1715728247206,-157.051508,0.00012995,2]
[327037017,1715728247216,-157.051508,0.00012995,2]
[327037018,1715728247225,-157.051508,0.00012995,2]
[327037019,1715728247235,-157.051508,0.00012995,2]
[327037020,1715728247244,-157.051508,0.00012995,2]
[327037021,1715728247254,-500.0,0.00012995,2]
[327037022,1715728247305,-500.0,0.00012995,2]
[327037023,1715728247317,-500.0,0.00012995,2]
[327037024,1715728247326,-602.07,0.00012995,2]
[327037025,1715728247336,-1226.43,0.00012995,2]
[327037026,1715728247345,-500.0,0.00012995,2]
[327037027,1715728247355,-532.74,0.00012995,2]
[327037028,1715728247364,-656.52,0.00012995,2]
[327037029,1715728247373,-13328.63,0.00012995,2]
[327037030,1715728247384,-1029.34,0.00012995,2]
[327037031,1715728247393,-3511.5,0.00012995,2]
[327037032,1715728247402,-5474.96,0.00012995,2]
[327037033,1715728247416,-500.0,0.00012995,2]
[327037034,1715728247425,-958.28,0.00012995,2]
[327037035,1715728247435,-6122.11,0.00012995,2]
[327037036,1715728247445,-1703.94,0.00012995,2]
[327037037,1715728247456,-500.0,0.00012995,2]
[327037038,1715728247466,-500.0,0.00012995,2]
[327037039,1715728247475,-978.63,0.00012995,2]
[327037040,1715728247485,-502.94,0.00012995,2]
[327037041,1715728247495,-941.51,0.00012995,2]
[327037042,1715728247504,-500.0,0.00012995,2]
[327037043,1715728247513,-26963.49,0.00012995,2]
[327037044,1715728247523,-500.0,0.00012995,2]
[327037045,1715728247532,-1457.66,0.00012995,2]
[327037046,1715728247541,-500.0,0.00012995,2]
[327037047,1715728247551,-3146.55,0.00012995,2]
[327037048,1715728247561,-500.0,0.00012995,2]
[327037049,1715728247570,-500.0,0.00012995,2]
[327037050,1715728247579,-500.0,0.00012995,2]
[327037051,1715728247588,-500.0,0.00012995,2]
[327037052,1715728247597,-500.0,0.00012995,2]
[327037053,1715728247607,-500.0,0.00012995,2]
[327037054,1715728247616,-500.0,0.00012995,2]
[327037055,1715728247626,-500.0,0.00012995,2]
[327037056,1715728247635,-797.14,0.00012995,2]
[327037057,1715728247645,-1529.24,0.00012995,2]
[327037058,1715728247654,-500.0,0.00012995,2]
[327037059,1715728247664,-1517.21,0.00012995,2]
[327037060,1715728247677,-224.56093341,0.00012995,2]
[327037061,1715728247686,-500.0,0.00012995,2]
[327037062,1715728247695,-745.43,0.00012995,2]
[327037063,1715728247705,-745.43,0.00012995,2]
[327037064,1715728247716,-500.0,0.00012995,2]
[327037065,1715728247726,-500.0,0.00012995,2]
[327037066,1715728247736,-2028.14,0.00012995,2]
[327037067,1715728247745,-1358.81,0.00012995,2]
[327037068,1715728247758,-909.52,0.00012995,2]
[327037069,1715728247768,-1228.63,0.00012995,2]
[327037070,1715728247778,-500.0,0.00012995,2]
[327037071,1715728247787,-1123.54,0.00012995,2]
[327037072,1715728247796,-500.0,0.00012995,2]
[327037073,1715728247806,-500.0,0.00012995,2]
[327037074,1715728247817,-500.0,0.00012995,2]
[327037075,1715728247827,-761.35,0.00012995,2]
[327037076,1715728247837,-500.0,0.00012995,2]
[327037077,1715728247846,-2990.62,0.00012995,2]
[327037078,1715728247855,-1031.71,0.00012995,2]
[327037079,1715728247864,-3179.12,0.00012995,2]
[327037080,1715728247874,-2707.21,0.00012995,2]
[327037081,1715728247883,-1821.73,0.00012995,2]
[327037082,1715728247893,-500.0,0.00012995,2]
[327037083,1715728247902,-500.0,0.00012995,2]
[327037084,1715728247911,-4644.39,0.00012995,2]
[327037085,1715728247921,-897.81,0.00012995,2]
[327037086,1715728247931,-1017.04,0.00012995,2]
[327037087,1715728247940,-1446.35,0.00012995,2]
[327037088,1715728247951,-1341.54,0.00012995,2]
[327037089,1715728247961,-1735.32,0.00012995,2]
[327037090,1715728247970,-727.64,0.00012995,2]
[327037091,1715728247980,-4846.34,0.00012995,2]
[327037092,1715728247989,-2322.2,0.00012995,2]
[327037093,1715728248000,-1582.2,0.00012995,2]
[327037094,1715728248010,-2221.34,0.00012995,2]
[327037095,1715728248020,-1122.72,0.00012995,2]
[327037096,1715728248029,-500.0,0.00012995,2]
[327037097,1715728248039,-500.0,0.00012995,2]
[327037098,1715728248049,-4260.11,0.00012995,2]
[327037099,1715728248060,-1016.7,0.00012995,2]
[327037100,1715728248070,-3464.13,0.00012995,2]
[327037101,1715728248080,-1500.93,0.00012995,2]
[327037102,1715728248089,-1500.93,0.00012995,2]
[327037103,1715728248099,-666.2,0.00012995,2]
[327037104,1715728248109,-9234.67,0.00012995,2]
[327037105,1715728248119,-500.0,0.00012995,2]
[327037106,1715728248128,-2553.72,0.00012995,2]
[327037107,1715728248138,-500.0,0.00012995,2]
[327037108,1715728248147,-3656.07,0.00012995,2]
[327037109,1715728248157,-1558.9,0.00012995,2]
[327037110,1715728248166,-1558.9,0.00012995,2]
[327037111,1715728248176,-1063.78,0.00012995,2]
[327037112,1715728248186,-459.65,0.00012995,2]
[327037113,1715728248196,-2555.93,0.00012995,2]
[327037114,1715728248206,-3285.93,0.00012995,2]
[327037115,1715728248215,-10731.86,0.00012995,2]
[327037116,1715728248225,-655.28,0.00012995,2]
[327037117,1715728248235,-436.21,0.00012995,2]
[327037118,1715728248244,-2566.13,0.00012995,2]
[327037119,1715728248256,-2926.71,0.00012995,2]
[327037120,1715728248266,-719.08,0.00012995,2]
[327037121,1715728248275,-2527.38,0.00012995,2]
[327037122,1715728248285,-1168.38,0.00012995,2]
[327037123,1715728248293,-1658.96,0.00012995,2]
[327037124,1715728248302,-728.21,0.00012995,2]
[327037125,1715728248313,-500.0,0.00012995,2]
[327037126,1715728248323,-2438.23,0.00012995,2]
[327037127,1715728248332,-839.15,0.00012995,2]
[327037128,1715728248342,-3322.07,0.00012995,2]
[327037129,1715728248351,-407504.49749527,0.00012996,2]
[327037130,1715728248361,-691.42,0.00012996,2]
[327037131,1715728248370,-500.0,0.00012996,2]
[327037132,1715728248379,-589.1,0.00012996,2]
[327037133,1715728248389,-790.38,0.00012996,2]
[327037134,1715728248398,-500.0,0.00012996,2]
[327037135,1715728248407,-500.0,0.00012996,2]
[327037136,1715728248416,-500.0,0.00012996,2]
[327037137,1715728248426,-500.0,0.00012996,2]
[327037138,1715728248435,-500.0,0.00012996,2]
[327037139,1715728248445,-500.0,0.00012996,2]
[327037140,1715728248454,-500.0,0.00012996,2]
[327037141,1715728248464,-500.0,0.00012996,2]
[327037142,1715728248474,-1351.12,0.00012996,2]
[327037143,1715728248484,-602.07,0.00012996,2]
[327037144,1715728248493,-602.07,0.00012996,2]
[327037145,1715728248502,-1343.93,0.00012996,2]
[327037146,1715728248511,-500.0,0.00012996,2]
[327037147,1715728248521,-1546.61,0.00012996,2]
[327037148,1715728248530,-671.8483083,0.00012996,2]
[327037149,1715728248539,-1226.43,0.00012996,2]
[327037150,1715728248549,-1226.43,0.00012996,2]
[327037151,1715728248558,-1090.6184154,0.00012996,2]
[327037152,1715728248568,-500.0,0.00012996,2]
[327037153,1715728248577,-500.0,0.00012996,2]
[327037154,1715728248587,-500.0,0.00012996,2]
[327037155,1715728248597,-532.74,0.00012996,2]
[327037156,1715728248606,-532.74,0.00012996,2]
[327037157,1715728248615,-656.52,0.00012996,2]
[327037158,1715728248625,-656.52,0.00012996,2]
[327037159,1715728248634,-13328.63,0.00012996,2]
[327037160,1715728248644,-31680.6673278,0.00012996,2]
[327037161,1715728248654,-500.0,0.00012996,2]
[327037162,1715728248665,-1029.34,0.00012996,2]
[327037163,1715728248678,-3511.5,0.00012996,2]
[327037164,1715728248689,-12872.328095,0.00012996,2]
[327037165,1715728248698,-5474.96,0.00012996,2]
[327037166,1715728248708,-4065.11,0.00012996,2]
[327037167,1715728248718,-500.0,0.00012996,2]
[327037168,1715728248728,-958.28,0.00012996,2]
[327037169,1715728248737,-958.28,0.00012996,2]
[327037170,1715728248747,-6122.11,0.00012996,2]
[327037171,1715728248759,-6122.11,0.00012996,2]
[327037172,1715728248769,-958.28,0.00012996,2]
[327037173,1715728248780,-6122.11,0.00012996,2]
[327037174,1715728248790,-1703.94,0.00012996,2]
[327037175,1715728248799,-1703.94,0.00012996,2]
[327037176,1715728248808,-1703.94,0.00012996,2]
[327037177,1715728248818,-268.14,0.00012996,2]
[327037178,1715728248827,-3417.8989003,0.00012996,2]
[327037179,1715728248836,-500.0,0.00012996,2]
[327037180,1715728248845,-978.63,0.00012996,2]
[327037181,1715728248854,-978.63,0.00012996,2]
[327037182,1715728248864,-978.63,0.00012996,2]
[327037183,1715728248873,-151.0,0.00012996,2]
[327037184,1715728248882,-941.51,0.00012996,2]
[327037185,1715728248892,-2712.75,0.00012996,2]
[327037186,1715728248900,-500.0,0.00012996,2]
[327037187,1715728248910,-26963.49,0.00012996,2]
[327037188,1715728248919,-16204.26,0.00012996,2]
[327037189,1715728248929,-554.53,0.00012996,2]
[327037190,1715728248938,-500.0,0.00012996,2]
[327037191,1715728248947,-151.0,0.00012996,2]
[327037192,1715728248956,-1457.66,0.00012996,2]
[327037193,1715728248966,-1457.66,0.00012996,2]
[327037194,1715728248975,-1457.66,0.00012996,2]
[327037195,1715728248985,-500.0,0.00012996,2]
[327037196,1715728248994,-3146.55,0.00012996,2]
[327037197,1715728249003,-500.0,0.00012996,2]
[327037198,1715728249012,-500.0,0.00012996,2]
[327037199,1715728249022,-1430.61,0.00012996,2]
[327037200,1715728249032,-300.79,0.00012996,2]
[327037201,1715728249041,-151.0,0.00012996,2]
[327037202,1715728249051,-1002.77,0.00012996,2]
[327037203,1715728249063,-259.297528,0.00012996,2]
[327037204,1715728249072,-151.0,0.00012996,2]